bitfinex-derivatives/quotes_BNBF0:USTF0_20250511
["timestamp","ask_amount","ask_price","bid_price","bid_amount"]
[1746941769603,0.30031382,665.97,665.79,0.57084652]
[1746941769804,0.30031382,665.97,665.8,0.57084652]
[1746941770105,0.30031382,665.97,665.81,0.57084652]
[1746941770402,0.30031382,665.97,665.82,0.57056923]
[1746941770604,0.30031382,665.97,665.83,0.57056923]
[1746941770800,0.30031382,665.97,665.69,0.11866425]
[1746941771002,0.30031382,665.97,665.7,0.57045106]
[1746941771202,0.30031382,665.97,665.71,0.57045106]
[1746941771399,0.30031382,665.97,665.72,0.57045106]
[1746941771603,0.30031382,665.97,665.73,0.57045106]
[1746941771804,1.94559376,667.34,665.74,0.57045106]
[1746941772000,0.2997512,667.22,665.75,0.57031645]
[1746941772206,0.2997512,667.22,665.76,0.57031645]
[1746941772406,0.50463583,667.21,665.77,0.57031645]
[1746941772603,0.2434775,667.2,665.78,0.57031645]
[1746941772803,0.2434775,667.2,665.79,0.57031645]
[1746941773005,0.29976917,667.18,665.8,0.57031645]
[1746941773305,0.29976917,667.18,665.81,0.57031645]
[1746941773504,0.2434775,667.17,665.82,0.57031645]
[1746941773808,0.29978265,667.15,665.83,0.57025921]
[1746941774011,0.29978265,667.15,665.84,0.57025921]
[1746941774209,0.29978265,667.15,665.85,0.57025921]
[1746941774408,0.24345963,667.14,665.86,0.57025921]
[1746941774609,0.29979613,667.12,665.87,0.57025921]
[1746941774809,0.29979613,667.12,665.88,0.57025921]
[1746941775109,0.24345963,667.11,665.89,0.57025921]
[1746941775410,0.29980962,667.09,665.9,0.57025921]
[1746941775609,0.24345963,667.08,665.91,0.57025921]
[1746941775809,0.24345963,667.08,665.79,0.429]
[1746941776110,0.2998231,667.06,665.8,0.57035188]
[1746941776410,0.24345963,667.05,665.81,0.57035188]
[1746941776604,0.29983658,667.03,665.82,0.57035188]
[1746941776809,0.29983658,667.03,665.83,0.57035188]
[1746941777011,0.29983658,667.03,665.84,0.57035188]
[1746941777311,0.24345963,667.02,665.79,0.429]
[1746941777512,0.24345963,667.02,665.8,0.56991263]
[1746941777712,0.24345963,667.02,665.81,0.56991263]
[1746941777913,0.24345963,667.02,665.82,0.56991263]
[1746941778113,0.24345963,667.02,665.83,0.56991263]
[1746941778313,0.29985007,667.0,665.84,0.56991263]
[1746941778517,0.29985007,667.0,665.85,0.56991263]
[1746941778714,0.29985007,667.0,665.86,0.56991263]
[1746941778915,0.24345963,666.99,665.87,0.56991263]
[1746941779115,0.29985007,667.0,665.88,0.56935571]
[1746941779316,0.29985007,667.0,665.89,0.56935571]
[1746941779516,0.24340707,666.99,665.9,0.56935571]
[1746941779718,0.29986356,666.97,665.91,0.56935571]
[1746941779915,0.24340707,666.96,665.92,0.56935571]
[1746941780117,0.24340707,666.96,665.93,0.56935571]
[1746941780314,0.29987705,666.94,665.94,0.56935571]
[1746941780512,0.29987705,666.94,665.95,0.56935571]
[1746941780711,0.24340707,666.93,665.96,0.56893631]
[1746941780916,0.29989053,666.91,665.79,0.429]
[1746941781113,0.29989053,666.91,665.8,0.56892964]
[1746941781416,0.29989053,666.91,665.81,0.56892964]
[1746941781612,0.29989053,666.91,665.82,0.56892964]
[1746941781816,0.24340707,666.9,665.83,0.56892964]
[1746941782018,0.24340707,666.9,665.84,0.56892964]
[1746941782213,0.24340707,666.9,665.85,0.56892964]
[1746941782417,0.24340707,666.9,665.86,0.56892964]
[1746941782613,0.24340707,666.9,665.87,0.56857762]
[1746941782813,0.24340707,666.9,665.88,0.56857762]
[1746941783016,0.29990403,666.88,665.89,0.56857762]
[1746941783218,0.29990403,666.88,665.9,0.56857762]
[1746941783413,0.29990403,666.88,665.91,0.56857762]
[1746941783614,0.50454482,666.87,665.92,0.56857762]
[1746941783818,0.24340707,666.86,665.93,0.56857762]
[1746941784115,0.24340707,666.86,665.94,0.56857762]
[1746941784314,0.24340707,666.86,665.95,0.56857762]
[1746941784521,0.29992202,666.84,665.96,0.56857762]
[1746941784721,0.24340707,666.83,665.79,0.429]
[1746941784921,0.24340707,666.83,665.8,0.56732855]
[1746941785121,0.24340707,666.83,665.81,0.56732855]
[1746941785321,0.24340707,666.83,665.82,0.56732855]
[1746941785517,0.24340707,666.83,665.83,0.56732855]
[1746941785821,0.29993551,666.81,665.84,0.56732855]
[1746941786020,0.29993551,666.81,665.85,0.56710282]
[1746941786222,0.24340707,666.8,665.86,0.56710282]
[1746941786422,0.24340707,666.8,665.87,0.56710282]
[1746941786620,0.299949,666.78,665.88,0.56710282]
[1746941786821,0.299949,666.78,665.89,0.56710282]
[1746941787121,0.24340707,666.77,665.9,0.56710282]
[1746941787321,0.24340707,666.77,665.91,0.56710282]
[1746941787519,0.2999625,666.75,665.92,0.56710282]
[1746941787715,0.2999625,666.75,665.93,0.56694288]
[1746941787920,0.2999625,666.75,665.94,0.56694288]
[1746941788122,0.24340707,666.74,665.95,0.56694288]
[1746941788323,0.2999715,666.73,665.79,0.429]
[1746941788525,0.2999715,666.73,665.8,0.56691954]
[1746941788725,0.2999715,666.73,665.81,0.56691954]
[1746941788922,0.24342728,666.72,665.82,0.56691954]
[1746941789122,0.24342728,666.72,665.83,0.56691954]
[1746941789319,0.24342728,666.72,665.84,0.56691954]
[1746941789622,0.24342728,666.72,665.79,0.429]
[1746941790125,0.299985,666.7,665.79,0.429]
[1746941790425,0.24342728,666.69,665.79,0.429]
[1746941791225,0.2999985,666.67,665.79,0.429]
[1746941791626,0.24342728,666.66,665.79,0.429]
[1746941791925,0.300012,666.64,665.79,0.429]
[1746941792125,0.24342728,666.63,665.79,0.429]
[1746941792425,0.50471208,666.63,665.79,0.429]
[1746941792626,0.3000255,666.61,665.79,0.429]
[1746941792927,0.24342728,666.6,665.79,0.429]
[1746941793128,0.300039,666.58,665.69,0.11866425]
[1746941793523,0.24342728,666.57,665.69,0.11866425]
[1746941795323,0.26132404,666.56,665.69,0.11866425]
[1746941795529,0.30005701,666.54,665.69,0.11866425]
[1746941795933,0.24324865,666.53,665.7,0.44]
[1746941797540,0.30007051,666.51,665.7,0.44]
[1746941797838,0.24324865,666.5,665.7,0.44]
[1746941798033,0.30007051,666.51,665.7,0.44]
[1746941798235,0.30007952,666.49,665.7,0.44]
[1746941798432,0.5614173,666.49,665.7,0.44]
[1746941798639,0.24330205,666.48,665.7,0.44]
[1746941798940,0.54339057,666.47,665.7,0.44]
[1746941799235,0.24330205,666.46,665.7,0.44]
[1746941799539,0.30009753,666.45,665.7,0.44]
[1746941799741,0.54339958,666.45,665.7,0.44]
[1746941800040,0.24330205,666.44,665.7,0.44]
[1746941800234,0.30010653,666.43,665.7,0.44]
[1746941800641,0.24330666,666.42,665.7,0.44]
[1746941800843,0.30011554,666.41,665.7,0.44]
[1746941801341,0.24330666,666.4,665.7,0.44]
[1746941801941,0.30012455,666.39,665.7,0.44]
[1746941802341,0.24330666,666.38,665.7,0.44]
[1746941802542,0.30013355,666.37,665.7,0.44]
[1746941802742,0.24330666,666.36,665.7,0.44]
[1746941802936,0.30014256,666.35,665.7,0.44]
[1746941803442,0.24330666,666.34,665.7,0.44]
[1746941803841,0.30015157,666.33,665.7,0.44]
[1746941804342,0.24330666,666.32,665.7,0.44]
[1746941804539,0.30016058,666.31,665.7,0.44]
[1746941804842,0.24330666,666.3,665.7,0.44]
[1746941805042,0.30016959,666.29,665.7,0.44]
[1746941805341,0.24330666,666.28,665.7,0.44]
[1746941805543,0.3001786,666.27,665.7,0.44]
[1746941806242,0.24330666,666.26,665.7,0.44]
[1746941806444,0.30018761,666.25,665.7,0.44]
[1746941806844,0.24330666,666.24,665.7,0.44]
[1746941807140,0.30019662,666.23,665.7,0.44]
[1746941807644,0.24330666,666.22,665.7,0.44]
[1746941807846,0.30020564,666.21,665.7,0.44]
[1746941808341,0.24330666,666.2,665.7,0.44]
[1746941808548,0.30021465,666.19,665.7,0.44]
[1746941809044,0.24330666,666.18,665.7,0.44]
[1746941809244,0.30022366,666.17,665.7,0.44]
[1746941809741,0.24330666,666.16,665.7,0.44]
[1746941809947,0.30023268,666.15,665.7,0.44]
[1746941810442,0.24330666,666.14,665.7,0.44]
[1746941810647,0.30024169,666.13,665.7,0.44]
[1746941811443,0.24330666,666.12,665.7,0.44]
[1746941811750,0.3002507,666.11,665.7,0.44]
[1746941812046,0.24330666,666.1,665.7,0.44]
[1746941812240,0.30025972,666.09,665.7,0.44]
[1746941812646,0.24330666,666.08,665.7,0.44]
[1746941812850,0.30026874,666.07,665.7,0.44]
[1746941813349,0.24330666,666.06,665.7,0.44]
[1746941813549,0.30027775,666.05,665.7,0.44]
[1746941814149,0.24330666,666.04,665.7,0.44]
[1746941814343,0.30028677,666.03,665.7,0.44]
[1746941814744,0.24330666,666.02,665.7,0.44]
[1746941814945,0.30029579,666.01,665.7,0.44]
[1746941815247,0.24330666,666.0,665.7,0.44]
[1746941815451,0.3003048,665.99,665.7,0.44]
[1746941815846,0.3003048,665.99,665.69,0.11866425]
[1746941816050,0.24324381,665.98,665.69,0.11866425]
[1746941816250,0.30031382,665.97,665.69,0.11866425]
[1746941816648,0.24324381,665.96,665.69,0.11866425]
[1746941816846,0.30032284,665.95,665.69,0.11866425]
[1746941817253,0.24324381,665.94,665.69,0.11866425]
[1746941817453,0.30033186,665.93,665.69,0.11866425]
[1746941817954,0.24324381,665.92,665.69,0.11866425]
[1746941818154,0.30034088,665.91,665.69,0.11866425]
[1746941818655,0.24324381,665.9,665.69,0.11866425]
[1746941826261,0.30034088,665.91,665.69,0.11866425]
[1746941828162,0.24318457,665.9,665.69,0.11866425]
[1746941828361,0.30034088,665.91,665.69,0.11866425]
[1746941828761,0.24317452,665.9,665.69,0.11866425]
[1746941832365,0.3003499,665.89,665.69,0.11866425]
[1746941832565,0.24317452,665.88,665.69,0.11866425]
[1746941833164,0.30035892,665.87,665.69,0.11866425]
[1746941834058,0.24317452,665.86,665.69,0.11866425]
[1746941834260,0.30036795,665.85,665.69,0.11866425]
[1746941834763,0.24317452,665.84,665.69,0.11866425]
[1746941834965,0.30037697,665.83,665.69,0.11866425]
[1746941835365,0.24317452,665.82,665.69,0.11866425]
[1746941838874,0.30038599,665.81,665.69,0.11866425]
[1746941839574,0.24317452,665.8,665.69,0.11866425]
[1746941839776,0.30039501,665.79,665.69,0.11866425]
[1746941841171,0.24317452,665.78,665.69,0.11866425]
[1746941841975,0.30040404,665.77,665.69,0.11866425]
[1746941843575,0.24317452,665.76,665.69,0.11866425]
[1746941843776,0.30041306,665.75,665.69,0.11866425]
[1746941844177,0.24317452,665.74,665.69,0.11866425]
[1746941844374,0.30042209,665.73,665.69,0.11866425]
[1746941844574,0.24317452,665.72,665.69,0.11866425]
[1746941844774,0.30043111,665.71,665.69,0.11866425]
[1746941846578,0.2431365,665.7,665.69,0.11866425]
[1746941848182,0.30043111,665.71,665.69,0.11866425]
[1746941848879,0.24314207,665.7,665.69,0.11866425]
[1746941850680,0.30043111,665.71,665.69,0.11866425]
[1746941860887,0.24329558,665.7,665.69,0.11866425]
[1746941863391,0.54373121,665.7,665.69,0.11866425]
[1746941863590,0.30043563,665.7,665.69,0.11866425]
[1746941863890,0.54378918,665.7,665.69,0.11866425]
[1746941871690,0.30043563,665.7,665.69,0.11866425]
[1746941871995,0.54378455,665.7,665.69,0.11866425]
[1746941882800,0.30043563,665.7,665.69,0.11866425]
[1746941883102,0.54378567,665.7,665.69,0.11866425]
[1746941892002,0.30043563,665.7,665.69,0.11866425]
[1746941892302,0.54378729,665.7,665.69,0.11866425]
[1746941893003,0.30043563,665.7,665.69,0.11866425]
[1746941894403,0.54378549,665.7,665.69,0.11866425]
[1746941894802,0.30043563,665.7,665.69,0.11866425]
[1746941897403,0.54365143,665.7,665.69,0.11866425]
[1746941905409,0.30043563,665.7,665.69,0.11866425]
[1746941906412,0.54358753,665.7,665.69,0.11866425]
[1746941913010,0.30043563,665.7,665.69,0.11866425]
[1746941913415,0.54359362,665.7,665.69,0.11866425]
[1746941922121,0.30043563,665.7,665.69,0.11866425]
[1746941922418,0.5435781,665.7,665.69,0.11866425]
[1746941922622,0.30043563,665.7,665.69,0.11866425]
[1746941923019,0.54357871,665.7,665.69,0.11866425]
[1746941931233,0.30043563,665.7,665.69,0.11866425]
[1746941931734,0.54357499,665.7,665.69,0.11866425]
[1746941933635,0.30043563,665.7,665.69,0.11866425]
[1746941935638,0.54359952,665.7,665.69,0.11866425]
[1746941940239,0.30043563,665.7,665.69,0.11866425]
[1746941940543,0.54352883,665.7,665.69,0.11866425]
[1746941951444,0.8050355,665.7,665.69,0.11866425]
[1746941957258,0.54352883,665.7,665.69,0.11866425]
[1746941957552,0.8050355,665.7,665.69,0.11866425]
[1746941959857,0.8050355,665.7,665.38,0.30058011]
[1746941960159,0.2430932,665.69,665.65,0.08459736]
[1746941960459,0.30044465,665.68,665.65,0.08459736]
[1746941960757,0.2430932,665.67,665.65,0.08459736]
[1746941963459,0.30045368,665.66,665.65,0.08459736]
[1746941964060,0.54354688,665.66,665.65,0.08459736]
[1746941969557,0.30045368,665.66,665.65,0.08459736]
[1746941969856,0.54365452,665.66,665.65,0.08459736]
[1746941978568,0.30045368,665.66,665.65,0.08459736]
[1746941989572,0.5436886,665.66,665.65,0.08459736]
[1746941990370,0.30045368,665.66,665.65,0.08459736]
[1746942002889,0.54372099,665.66,665.65,0.08459736]
[1746942019798,0.30045368,665.66,665.65,0.08459736]
[1746942031021,0.54378134,665.66,665.65,0.08459736]
[1746942032223,0.30045368,665.66,665.65,0.08459736]
[1746942034525,0.54375208,665.66,665.65,0.08459736]
[1746942035227,0.30045368,665.66,665.65,0.08459736]
[1746942042429,0.54378543,665.66,665.65,0.08459736]
[1746942043631,0.30045368,665.66,665.65,0.08459736]
[1746942043828,0.54378683,665.66,665.65,0.08459736]
[1746942045026,0.30045368,665.66,665.65,0.08459736]
[1746942045530,0.54379074,665.66,665.65,0.08459736]
[1746942047026,0.30045368,665.66,665.65,0.08459736]
[1746942047829,0.54378959,665.66,665.65,0.08459736]
[1746942052633,0.30045368,665.66,665.65,0.08459736]
[1746942055435,0.5437326,665.66,665.65,0.08459736]
[1746942074152,0.5437326,665.66,665.65,0.02859123]
[1746942076251,0.5437326,665.66,665.65,0.00382216]
[1746942084256,0.5437326,665.66,665.59,0.20435762]
[1746942084756,0.24327892,665.65,665.59,0.20435762]
[1746942084952,0.30046271,665.64,665.59,0.20435762]
[1746942085460,0.24327892,665.63,665.59,0.20435762]
[1746942085652,0.30047174,665.62,665.59,0.20435762]
[1746942086057,0.24327892,665.61,665.59,0.20435762]
[1746942086258,0.30048076,665.6,665.59,0.20435762]
[1746942086657,0.54375968,665.6,665.59,0.20435762]
[1746942094758,0.30048076,665.6,665.59,0.20435762]
[1746942095063,0.54389133,665.6,665.59,0.20435762]
[1746942098467,0.30048076,665.6,665.59,0.20435762]
[1746942098766,0.54394118,665.6,665.59,0.20435762]
[1746942101075,0.54394118,665.6,665.59,0.07039002]
[1746942126402,0.30048076,665.6,665.59,0.07039002]
[1746942127303,0.54389602,665.6,665.59,0.07039002]
[1746942128000,0.30048076,665.6,665.59,0.07039002]
[1746942129103,0.54391981,665.6,665.59,0.07039002]
[1746942130003,0.30048076,665.6,665.59,0.07039002]
[1746942149922,0.54379529,665.6,665.59,0.07039002]
[1746942150319,0.30048076,665.6,665.59,0.07039002]
[1746942150822,0.54379826,665.6,665.59,0.07039002]
[1746942165533,0.30048076,665.6,665.59,0.07039002]
[1746942197559,0.54397037,665.6,665.59,0.07039002]
[1746942199568,0.30048076,665.6,665.59,0.07039002]
[1746942270523,1.94559376,666.35,665.59,0.62223602]
[1746942270718,0.30014707,666.34,665.6,0.551846]
[1746942271024,0.54359235,666.34,665.61,0.551846]
[1746942271323,0.24344528,666.33,665.62,0.551846]
[1746942271525,0.24344528,666.33,665.63,0.551846]
[1746942271726,0.24344528,666.33,665.64,0.551846]
[1746942271921,0.24344528,666.33,665.65,0.551846]
[1746942272222,0.24344528,666.33,665.66,0.551846]
[1746942272525,0.24344528,666.33,665.67,0.551846]
[1746942272727,0.30015608,666.32,665.68,0.551846]
[1746942272918,0.30015608,666.32,665.69,0.551846]
[1746942273122,0.24344528,666.31,665.7,0.551846]
[1746942273322,0.24344528,666.31,665.71,0.551846]
[1746942273523,0.30016509,666.3,665.72,0.551846]
[1746942273725,0.24344528,666.29,665.73,0.551846]
[1746942274024,0.24344528,666.29,665.74,0.932846]
[1746942274225,0.24344528,666.29,665.75,0.551846]
[1746942274423,0.24344528,666.29,665.74,0.381]
[1746942274619,0.3001741,666.28,665.74,0.381]
[1746942275125,0.24344528,666.27,665.75,0.55199822]
[1746942275323,0.24344528,666.27,665.74,0.381]
[1746942276228,0.30018311,666.26,665.74,0.381]
[1746942276619,0.24344528,666.25,665.74,0.381]
[1746942276821,0.30019212,666.24,665.74,0.381]
[1746942277522,0.24344528,666.23,665.74,0.381]
[1746942278022,0.24344528,666.23,665.75,0.55163024]
[1746942278223,0.24344528,666.23,665.76,0.55165394]
[1746942278419,0.30020113,666.22,665.74,0.381]
[1746942278623,0.30020113,666.22,665.75,0.5514795]
[1746942278821,0.30020113,666.22,665.76,0.5514795]
[1746942279019,0.30020113,666.22,665.74,0.381]
[1746942279321,0.24344528,666.21,665.75,0.55147957]
[1746942279521,0.30021014,666.2,665.74,0.381]
[1746942279825,0.30021014,666.2,665.75,0.55136159]
[1746942280027,0.24344528,666.19,665.74,0.381]
[1746942280222,0.30021915,666.18,665.75,0.55136098]
[1746942280421,0.30021915,666.18,665.74,0.381]
[1746942280627,0.30021915,666.18,665.75,0.55125492]
[1746942280831,0.24344528,666.17,665.74,0.381]
[1746942281033,0.24344528,666.17,665.75,0.55125194]
[1746942281230,0.24344528,666.17,665.74,0.381]
[1746942281434,0.24344528,666.17,665.75,0.55127716]
[1746942281634,0.24344528,666.17,665.74,0.381]
[1746942281835,0.24344528,666.17,665.75,0.55116005]
[1746942282032,0.24344528,666.17,665.74,0.381]
[1746942282428,0.24344528,666.17,665.75,0.55107999]
[1746942282631,0.24344528,666.17,665.76,0.55106601]
[1746942282831,0.24344528,666.17,665.74,0.381]
[1746942283032,0.24344528,666.17,665.75,0.5510575]
[1746942283233,0.24344528,666.17,665.76,0.5510575]
[1746942283431,0.24344528,666.17,665.74,0.381]
[1746942283632,0.24344528,666.17,665.75,0.55095219]
[1746942283937,0.24344528,666.17,665.76,0.55095219]
[1746942284138,0.24344528,666.17,665.74,0.381]
[1746942284436,0.24344528,666.17,665.75,0.5509578]
[1746942284637,0.24344528,666.17,665.74,0.381]
[1746942284940,0.24344528,666.17,665.75,0.55086008]
[1746942285236,0.24344528,666.17,665.74,0.381]
[1746942285437,0.24344528,666.17,665.75,0.55076319]
[1746942285737,0.24344528,666.17,665.74,0.381]
[1746942285938,0.24344528,666.17,665.75,0.55076307]
[1746942286238,0.30021915,666.18,665.59,0.07039002]
[1746942286436,0.30021915,666.18,665.6,0.55072054]
[1746942286639,0.24349791,666.17,665.61,0.55072054]
[1746942286833,0.24349791,666.17,665.62,0.55072054]
[1746942287032,0.24349791,666.17,665.63,0.55072054]
[1746942287231,0.24349791,666.17,665.64,0.55072054]
[1746942287437,0.30021915,666.18,665.65,0.55072054]
[1746942287631,0.30021915,666.18,665.66,0.55072054]
[1746942287833,0.30021915,666.18,665.67,0.55072054]
[1746942288036,0.30021915,666.18,665.68,0.55072054]
[1746942288233,0.30021915,666.18,665.59,0.07039002]
[1746942288538,0.30021915,666.18,665.6,0.55033699]
[1746942288737,0.30021915,666.18,665.61,0.55033699]
[1746942288939,0.30021915,666.18,665.62,0.55033699]
[1746942289133,0.30021915,666.18,665.63,0.55033699]
[1746942289336,0.30021915,666.18,665.64,0.55033699]
[1746942289535,0.30021915,666.18,665.65,0.55033699]
[1746942289740,0.30021915,666.18,665.66,0.55033699]
[1746942289936,0.30021915,666.18,665.67,0.55033699]
[1746942290137,0.30021915,666.18,665.68,0.55001285]
[1746942290336,0.30021915,666.18,665.69,0.55001285]
[1746942290536,0.30021915,666.18,665.7,0.55001285]
[1746942290734,0.30021915,666.18,665.71,0.55001285]
[1746942290940,0.30021915,666.18,665.72,0.55001285]
[1746942291240,0.30021915,666.18,665.73,0.55001285]
[1746942291436,0.30021915,666.18,665.74,0.55001285]
[1746942291641,0.30021915,666.18,665.66,0.393]
[1746942291642,0.30021915,666.18,665.75,0.55001285]
[1746942291843,0.30021915,666.18,665.76,0.55001285]
[1746942292143,0.30021915,666.18,665.77,0.55001285]
[1746942292342,0.30021915,666.18,665.66,0.393]
[1746942292543,0.30021915,666.18,665.67,0.5495553]
[1746942292741,0.30021915,666.18,665.68,0.5495553]
[1746942293041,0.30021915,666.18,665.69,0.5495553]
[1746942293242,0.30021915,666.18,665.7,0.5495553]
[1746942293443,0.30021915,666.18,665.71,0.5495553]
[1746942293642,0.30021915,666.18,665.72,0.5495553]
[1746942293840,0.30021915,666.18,665.73,0.5495553]
[1746942294040,0.30021915,666.18,665.74,0.5495553]
[1746942294244,0.30021915,666.18,665.75,0.5495553]
[1746942294446,0.30021915,666.18,665.66,0.393]
[1746942294747,0.30021915,666.18,665.67,0.54941135]
[1746942294939,0.30021915,666.18,665.68,0.54941135]
[1746942295141,0.30021915,666.18,665.69,0.54941135]
[1746942295340,0.30021915,666.18,665.7,0.5494007]
[1746942295545,0.30021915,666.18,665.71,0.5494007]
[1746942295740,0.30021915,666.18,665.72,0.5494007]
[1746942295946,0.30021915,666.18,665.73,0.5494007]
[1746942296143,0.30021915,666.18,665.74,0.5494007]
[1746942296346,0.30021915,666.18,665.75,0.5494007]
[1746942296546,0.30021915,666.18,665.76,0.5494007]
[1746942296748,0.30021915,666.18,665.77,0.5494007]
[1746942297047,0.30021915,666.18,665.78,0.5494007]
[1746942297246,0.30021915,666.18,665.79,0.5494007]
[1746942297446,0.30021915,666.18,665.8,0.5494007]
[1746942297650,0.30021915,666.18,665.66,0.393]
[1746942297853,0.30021915,666.18,665.67,0.54920225]
[1746942298153,0.30021915,666.18,665.68,0.54920225]
[1746942298353,0.30021915,666.18,665.69,0.54920225]
[1746942298546,0.30021915,666.18,665.66,0.393]
[1746942298547,0.30021915,666.18,665.7,0.54920225]
[1746942298747,0.30021915,666.18,665.71,0.54915395]
[1746942298946,0.30021915,666.18,665.72,0.54915395]
[1746942299147,0.30021915,666.18,665.66,0.393]
[1746942300055,0.30021915,666.18,665.67,0.54906595]
[1746942300554,0.30021915,666.18,665.68,0.54906595]
[1746942300754,0.30021915,666.18,665.69,0.54906595]
[1746942300949,0.30021915,666.18,665.7,1.75188711]
[1746942301252,0.30021915,666.18,665.71,0.54906595]
[1746942301452,0.30021915,666.18,665.72,0.54906595]
[1746942301653,0.30021915,666.18,665.73,0.54906595]
[1746942301853,0.30021915,666.18,665.74,0.54906595]
[1746942302053,0.30021915,666.18,665.75,0.54906595]
[1746942302248,0.30021915,666.18,665.76,0.54906595]
[1746942302555,0.30021915,666.18,665.77,0.54906595]
[1746942302755,0.30021915,666.18,665.78,0.54906595]
[1746942303055,0.30021915,666.18,665.79,0.54906595]
[1746942303254,0.30021915,666.18,665.8,0.54906595]
[1746942303455,0.30021915,666.18,665.81,0.54906595]
[1746942303754,0.30021915,666.18,665.82,0.54884804]
[1746942303955,0.30021915,666.18,665.83,0.54884804]
[1746942304156,0.30021915,666.18,665.84,0.54884804]
[1746942304450,0.30021915,666.18,665.85,0.54884804]
[1746942304652,0.30021915,666.18,665.86,0.54884804]
[1746942304856,0.30021915,666.18,665.59,0.33159539]
[1746942305053,0.30021915,666.18,665.6,0.54877273]
[1746942305250,0.30021915,666.18,665.61,0.54877273]
[1746942305457,0.30021915,666.18,665.62,0.54877273]
[1746942305650,0.30021915,666.18,665.63,1.7511732]
[1746942305853,0.30021915,666.18,665.64,1.7511732]
[1746942306054,0.30021915,666.18,665.65,0.54877273]
[1746942306254,0.30021915,666.18,665.66,0.54877273]
[1746942306454,0.30021915,666.18,665.64,1.20240047]
[1746942306455,0.30021915,666.18,665.67,0.54877273]
[1746942306657,0.30021915,666.18,665.68,0.54877273]
[1746942306850,0.30021915,666.18,665.69,0.54877273]
[1746942307158,0.30021915,666.18,665.7,1.75109556]
[1746942307352,0.30021915,666.18,665.71,0.54869509]
[1746942307558,0.30021915,666.18,665.72,0.54869509]
[1746942307761,0.30021915,666.18,665.73,0.54869509]
[1746942307963,0.30021915,666.18,665.74,0.54869509]
[1746942308163,0.30021915,666.18,665.75,0.54869509]
[1746942308463,0.30021915,666.18,665.76,0.54869509]
[1746942308658,0.30021915,666.18,665.77,0.54869509]
[1746942308858,0.30021915,666.18,665.78,0.54860378]
[1746942309159,0.30021915,666.18,665.79,0.54860378]
[1746942309362,0.30021915,666.18,665.8,0.54860378]
[1746942309562,0.30021915,666.18,665.6,0.35]
[1746942309563,0.30021915,666.18,665.81,0.54860378]
[1746942309860,0.30021915,666.18,665.82,0.54860378]
[1746942310063,0.30021915,666.18,665.83,0.54860378]
[1746942310261,0.30021915,666.18,665.84,0.54860378]
[1746942310460,0.30021915,666.18,665.85,0.54860378]
[1746942310660,0.30021915,666.18,665.6,0.35]
[1746942310865,0.30021915,666.18,665.61,0.54857058]
[1746942311062,0.30021915,666.18,665.62,1.75052153]
[1746942311267,0.30021915,666.18,665.63,0.54857058]
[1746942311467,0.30021915,666.18,665.62,1.20195095]
[1746942311468,0.30021915,666.18,665.64,1.75052153]
[1746942311664,0.30021915,666.18,665.65,0.54857058]
[1746942311968,0.30021915,666.18,665.66,1.75052153]
[1746942312164,0.30021915,666.18,665.67,0.54857058]
[1746942312368,0.30021915,666.18,665.68,0.54857058]
[1746942312669,0.30021915,666.18,665.69,0.54857058]
[1746942312870,0.30021915,666.18,665.7,0.54857058]
[1746942313063,0.30021915,666.18,665.71,0.54857058]
[1746942313262,0.30021915,666.18,665.72,1.75052153]
[1746942313467,0.30021915,666.18,665.73,0.54857058]
[1746942313667,0.30021915,666.18,665.74,0.54857058]
[1746942313867,0.30021915,666.18,665.75,0.54857058]
[1746942314067,0.30021915,666.18,665.72,1.20195095]
[1746942314068,0.30021915,666.18,665.76,0.54857058]
[1746942314268,0.30021915,666.18,665.77,0.54857058]
[1746942314568,0.30021915,666.18,665.78,0.54857058]
[1746942314765,0.30021915,666.18,665.79,0.54857058]
[1746942314968,0.30021915,666.18,665.8,0.54857058]
[1746942315271,1.94559376,667.12,665.81,1.75013493]
[1746942315571,0.29980512,667.1,665.82,0.54857058]
[1746942315771,0.29980512,667.1,665.83,0.54857058]
[1746942315971,0.29980512,667.1,665.84,0.54840578]
[1746942316172,0.29980512,667.1,665.85,0.54840578]
[1746942316370,0.29980512,667.1,665.86,0.54840578]
[1746942316566,0.24336989,667.09,665.87,0.54840578]
[1746942316765,0.24336989,667.09,665.88,0.54840578]
[1746942316965,0.24336989,667.09,665.89,1.74997013]
[1746942317169,0.2998186,667.07,665.9,0.54840578]
[1746942317371,0.2998186,667.07,665.91,0.54840578]
[1746942317666,0.24336989,667.06,665.92,1.74998036]
[1746942317866,0.29983209,667.04,665.93,0.54841601]
[1746942318171,0.29983209,667.04,665.94,1.74998036]
[1746942318373,0.24336989,667.03,665.95,1.74998036]
[1746942318572,0.29984557,667.01,665.96,0.54841601]
[1746942318774,0.29984557,667.01,665.97,1.74998036]
[1746942319074,0.29984557,667.01,665.98,0.54841601]
[1746942319274,0.24336989,667.0,665.99,0.54841601]